Cogmind - Beta 15 @@@ ROGUE MODE // 2025.07.29 @ 10:47:43 Player: surprisinglarge Result: Self-destructed Performance ------------- Evolutions (1) 500 Regions Visited (2) 400 Robots Destroyed (7) 35 Value Destroyed (231) 231 Prototype IDs (0) 0 Alien Tech Used (0) 0 Bonus (0) 0 TOTAL SCORE: 1166 Bonus ------- None Cogmind --------- Core Integrity 168/400 Matter 300/300 Energy 100/100 System Corruption 0% Temperature Cool (0) Movement Core (100) Ox1 Location -9/Materials Parts ------- > --- POWER (1) -------- (None) > --- PROPULSION (3) --- (None) > --- UTILITY (3) ------ Small Storage Unit > --- WEAPON (2) ------- (None) > --- INVENTORY (8) ---- (None) Peak State ------------ > --- POWER ------------ Light Ion Engine > --- PROPULSION ------- Aluminum Leg Aluminum Leg > --- UTILITY ---------- Small Storage Unit > --- WEAPON ----------- Medium Laser Medium Laser > --- INVENTORY -------- (None) [Rating: 6] Favorites ----------- Power Light Ion Engine Engine Light Ion Engine Propulsion Aluminum Leg Leg Aluminum Leg Utility Small Storage Unit Storage Small Storage Unit Weapon Medium Laser Energy Gun Medium Laser Build | -11 -10 -9 ------- Run | Yrd Mat Mat Slots Evolved 2 | . . 2 Power . | . . . Propulsion 1 | . . 1 Utility 1 | . . 1 Weapon . | . . . Parts Attached 6 | 6 . . Power 1 | 1 . . Engine 1 | 1 . . Core . | . . . Reactor . | . . . Propulsion 2 | 2 . . Treads . | . . . Leg 2 | 2 . . Wheel . | . . . Hover . | . . . Flight . | . . . Utility 1 | 1 . . Device . | . . . Storage 1 | 1 . . Processor . | . . . Hackware . | . . . Protection . | . . . Artifact . | . . . Weapon 2 | 2 . . Energy Gun 2 | 2 . . Energy Cannon . | . . . Ballistic Gun . | . . . Ballistic Cannon . | . . . Launcher . | . . . Special Weapon . | . . . Impact Weapon . | . . . Slashing Weapon . | . . . Piercing Weapon . | . . . Special Melee Weapon . | . . . Unidentified Prototypes . | . . . Parts Lost 5 | . . 5 Power 1 | . . 1 Propulsion 2 | . . 2 Utility . | . . . Weapon 2 | . . 2 Highest Loss Streak 3 | . . 3 To Critical Strikes . | . . . Average Backups . | . . . Power . | . . . Propulsion . | . . . Utility . | . . . Weapon . | . . . Tool/Special . | . . . Unused Backups . | . . . Power . | . . . Propulsion . | . . . Utility . | . . . Weapon . | . . . Tool/Special . | . . . Average Slot Usage (%) 62 | . 85 55 Engine 9 | . 14 8 Leg 22 | . 28 20 Storage 11 | . 14 11 Energy Gun 18 | . 28 15 Peak Build Rating 6 | 6 6 6 Average Rating 5 | 4 6 5 On Entrance 4 | . 6 6 Naked Turns . | . . . Heaviest Build 12 | 12 12 12 Greatest Support 20 | 20 20 20 Greatest Overweight (x) . | . . . Average Overweight (x) . | . . . Largest Inventory Capacity 8 | 8 8 8 Average Capacity 7 | 7 8 8 Most Carried 2 | 2 . . Average Carried . | . . . Final Capacity 8 | 8 8 8 Final Carried . | . . . Class Distribution -------------------- 100% | Mutant Dominant Class ---------------- Mutant | -10/Materials Mutant | -9/Materials Resources | -11 -10 -9 ----------- Run | Yrd Mat Mat Matter Collected 260 | 229 31 . Remotely . | . . . Salvage Created 262 | . 45 217 Parts 9 | . 2 7 Haulers Intercepted . | . . . Recyclers Shooed . | . . . Parts Field Recycled . | . . . Retrieved Matter . | . . . Parts Self-Destructed . | . . . Prevented . | . . . Kills | -11 -10 -9 ------- Run | Yrd Mat Mat Combat Hostiles Destroyed 6 | . 1 5 Melee 1 | . . 1 Guns 4 | . 1 3 Classes Destroyed 4 | . 1 3 Watcher 1 | . . 1 Swarmer 1 | . . 1 Grunt 3 | . 1 2 Sentry 2 | . . 2 Best Kill Streak 3 | . 1 3 Combat Bots Only 3 | . 1 3 Max Kills in Single Turn 1 | . 1 1 Gunslinging . | . . . Exploded . | . . . Melee 1 | . . 1 Uniques/NPCs Destroyed . | . . . Combat | -11 -10 -9 -------- Run | Yrd Mat Mat Hostile Shots Fired 78 | . 1 77 Missed 24 | . 1 23 Hits 54 | . . 54 Projectile 54 | . . 54 Critical Strikes 3 | . . 3 Damage Taken 664 | . . 664 Core 232 | . . 232 Absorbed by Shields . | . . . Core Remaining (%) 100 | 100 100 . Volleys Fired 19 | . 1 18 Largest 2 | . 2 2 Hottest 100 | . 100 100 Shots Fired 35 | . 2 33 Gun 35 | . 2 33 Cannon . | . . . Launcher . | . . . Special . | . . . Kinetic . | . . . Thermal 35 | . 2 33 Explosive . | . . . Electromagnetic . | . . . Robot Hit Streak 11 | . 2 11 Robot Miss Streak 2 | . . 2 Penetration Max . | . . . Secondary Targets 1 | . . 1 Max Gunslinging Chain 1 | . . 1 Shots Hit Robots 28 | . 2 26 Core Hits 17 | . 2 15 Critical Kills . | . . . Critical Parts Destroyed . | . . . Critical Strikes 1 | . . 1 Burn 1 | . . 1 Melee Attacks . | . . . Impact . | . . . Slashing . | . . . Piercing . | . . . Sneak Attacks . | . . . Combat Hostiles . | . . . Follow-up Attacks . | . . . Damage Inflicted 371 | . 24 347 Guns 344 | . 24 320 Cannons . | . . . Explosions . | . . . Melee . | . . . Ramming 27 | . . 27 Kinetic . | . . . Thermal 344 | . 24 320 Explosive . | . . . Electromagnetic . | . . . Impact . | . . . Slashing . | . . . Piercing . | . . . Highest Corruption . | . . . Average Corruption . | . . . Corruption Purged . | . . . Corruption Blocked . | . . . Overload Shots . | . . . Overflow Damage . | . . . Projectiles . | . . . Explosions . | . . . Melee . | . . . Knockbacks . | . . . Impact . | . . . Kinetic . | . . . Secondary . | . . . Self-Inflicted Damage . | . . . Shots . | . . . Rammed 1 | . . 1 Targets Rammed 17 | . . 17 Kicked 16 | . . 16 Crushed . | . . . Highest Temperature 330 | . 39 330 Average Temperature 121 | . 20 128 Received Heat Transfer 255 | . . 255 Siege Activations . | . . . Martial Activations . | . . . Shielding Activations . | . . . Robots Disrupted . | . . . Combat Hostiles . | . . . Robots Corrupted . | . . . Combat Hostiles . | . . . Parts Fried . | . . . Impact Corruptions . | . . . Robots Melted 1 | . . 1 Combat Hostiles 1 | . . 1 Parts Melted 3 | . . 3 Heat Transferred 1110 | . 74 1036 Parts Sabotaged . | . . . Parts Stolen . | . . . Parts Stripped . | . . . Power Chain Reactions . | . . . Alert | -11 -10 -9 ------- Run | Yrd Mat Mat Maximum Alert Level . | . . . Low Security (%) 100 | 100 100 100 Level 1 . | . . . Level 2 . | . . . Level 3 . | . . . Level 4 . | . . . Level 5 . | . . . High Security . | . . . Max Security . | . . . Peak Influence 115 | . 20 115 Initial 3 | . . 3 Average 20 | . 4 29 Influence Increases 202 | . 20 182 Destroy 0b10 Robot/C 120 | . 20 100 Destroy 0b10 Robot/NC 5 | . . 5 Destroy Leader 32 | . . 32 Lose Combat Pursuer 45 | . . 45 Influence Decreases 157 | . 10 147 Entered New Map 7 | . . 7 Time Decay 100 | . 10 90 Lost Part 50 | . . 50 Squads Dispatched 1 | . . 1 Investigation . | . . . Extermination . | . . . Reinforcement 1 | . . 1 Assault . | . . . Garrison . | . . . Intercept . | . . . Searches Triggered . | . . . Construction Impeded . | . . . Haulers Reinforced . | . . . Active Scanning Responses . | . . . Cargo Convoy Interrupts . | . . . Stealth | -11 -10 -9 --------- Run | Yrd Mat Mat Distress Signals 1 | . . 1 Communications Jammed . | . . . Distress Signals . | . . . Times Spotted 12 | . 2 10 Peak Tracking Total 6 | . 1 6 Tactical Retreats 2 | . . 2 Traps | -11 -10 -9 ------- Run | Yrd Mat Mat Traps Triggered . | . . . Indirectly . | . . . Trap Hack Attempts . | . . . Triggered . | . . . Disarmed . | . . . Reprogrammed . | . . . Reused . | . . . Traps Extracted . | . . . Installed . | . . . Triggered . | . . . Machines | -11 -10 -9 ---------- Run | Yrd Mat Mat Machines Disabled . | . . . Max in Single Turn . | . . . Machines Repaired . | . . . Machines Dismantled . | . . . Machines Sabotaged . | . . . Overloaded Fab Kills . | . . . Hacking | -11 -10 -9 --------- Run | Yrd Mat Mat Machines Accessed . | . . . Terminals . | . . . Fabricators . | . . . Repair Stations . | . . . Recycling Units . | . . . Scanalyzers . | . . . Garrison Access . | . . . Total Hacks . | . . . Successful . | . . . Failed . | . . . Catastrophic . | . . . Database Lockouts . | . . . Manual . | . . . Terminals . | . . . Fabricators . | . . . Repair Stations . | . . . Recycling Units . | . . . Scanalyzers . | . . . Garrison Access . | . . . Terminal Hacks . | . . . Fabricator Hacks . | . . . Repair Station Hacks . | . . . Recycling Unit Hacks . | . . . Scanalyzer . | . . . Garrison Access Hacks . | . . . Unauthorized Hacks . | . . . Terminals . | . . . Fabricators . | . . . Repair Stations . | . . . Recycling Units . | . . . Scanalyzers . | . . . Garrison Access . | . . . Data Cores Recovered . | . . . Used . | . . . Hacking Detections . | . . . Full Trace Events . | . . . Feedback Events . | . . . Feedback Blocked . | . . . Robot Schematics Acquired . | . . . Robots Built . | . . . Authchips . | . . . Time . | . . . Total Robot Build Rating . | . . . Part Schematics Acquired . | . . . Parts Built . | . . . Authchips . | . . . Time . | . . . Total Part Build Rating . | . . . Parts Repaired . | . . . Time . | . . . Parts Recycled . | . . . Recycled Matter . | . . . Retrieved Matter . | . . . Retrieved Components . | . . . Parts Scanalyzed . | . . . Part Schematics Acquired . | . . . Parts Damaged . | . . . Bothacking | -11 -10 -9 ------------ Run | Yrd Mat Mat Used RIF Installer . | . . . Robots Hacked . | . . . Non-combat . | . . . Combat . | . . . Robot Hacks Applied . | . . . Relay Couplers Released . | . . . Fabnet Peak Effective % . | . . . Robots Rewired . | . . . Allies Hacked . | . . . Hacks Repelled . | . . . Allies | -11 -10 -9 -------- Run | Yrd Mat Mat Total Allies . | . . . Largest Group . | . . . Highest-Rated Group . | . . . Highest-Rated Ally . | . . . Total Orders . | . . . Ally Attacks . | . . . Total Damage . | . . . Kills . | . . . Allies Corrupted . | . . . Allies Melted . | . . . Intel | -11 -10 -9 ------- Run | Yrd Mat Mat Active Infowar (turns) . | . . . Robot Analysis Total . | . . . Derelict Logs Recovered . | . . . Drone Launches . | . . . Drone Recoveries . | . . . Exploration | -11 -10 -9 ------------- Run | Yrd Mat Mat Turns Passed 389 | 58 78 253 Spaces Moved 243 | 41 55 147 Core 4 | 4 . . Treads . | . . . Legs 239 | 37 55 147 Wheels . | . . . Hover . | . . . Flight . | . . . Fastest Speed 50 | 50 120 120 Average Speed 118 | 113 120 120 Slowest Speed 120 | 120 120 120 Overloaded Moves . | . . . Propulsion Burnouts . | . . . Robots Hopped . | . . . Potential Cave-ins . | . . . Cave-ins Triggered . | . . . Exploration Rate (%) 17 | 5 24 23 Regions Visited 2 Branch Regions . Pre-discovered Areas . | . . . Known Exits Taken . | . . . Unknown Exits Taken 2 | 1 1 . Scrap Searched . | . . . Spaces Dug . | . . . Terrain Destroyed . | . . . Melee . | . . . Projectile . | . . . AOE . | . . . Terrain Rammed . | . . . Walls Destroyed . | . . . Machines Disabled . | . . . Actions | -11 -10 -9 --------- Run | Yrd Mat Mat Total 304 | 52 65 187 Wait 15 | . 10 5 Move 241 | 40 54 147 Hop . | . . . Pick Up 6 | 6 . . Fast Attach . | . . . Attach 6 | 6 . . Detach . | . . . Swap . | . . . Drop . | . . . Fire 19 | . 1 18 Melee . | . . . Ram 1 | . . 1 Kick 16 | . . 16 Crush . | . . . Escape Stasis . | . . . Rewire . | . . . Trap . | . . . Miscellaneous . | . . . Route ------- -11/Scrapyard -10/Materials -9/Materials History --------- Turn | Location | Event 21 | -11/Scrapyard | Discovered new exit (range 16) 59 | -11/Scrapyard | Entered Materials 131 | -10/Materials | Discovered new exit (range 4) 137 | -10/Materials | Entered another Materials area 137 | -9/Materials | Evolved 2 slots: Propulsion x1, Utility x1 307 | -9/Materials | Build established: Mutant 360 | -9/Materials | Lost 3 parts (1p2w) 387 | -9/Materials | Core integrity fell below 50% 390 | -9/Materials | Self-destructed Last Messages --------------- R-06 Scavenger collects Lgt. Nuclear Core. Kicked S-10 Pest out of the way. R-06 Scavenger collects Aluminum Leg. Kicked S-10 Pest. Kicked S-10 Pest out of the way. Lgt. Ion Engine destroyed. U-05 Engineer builds a Door. Kicked R-06 Scavenger. Kicked S-10 Pest. Kicked S-10 Pest out of the way. Kicked S-10 Pest. S-10 Pest destroyed. Aluminum Leg destroyed. K-01 Serf collects debris. Kicked Y-45 Defender. K-01 Serf collects debris. Kicked Y-45 Defender. Aluminum Leg destroyed. K-01 Serf collects debris. Slammed into Y-45 Defender. Map ----- +----------------------------------------------------+ | ?????????????????????????????????????????????????? | | ?????????????????????????????????????????????????? | | ?????????????????????????????????????????????????? | | ?????????????????????????????????????????????????? | | ?????????????????????????????????????????????????? | | ?????????????????????????????????????????????????? | | ?????????????????????????????????????????????????? | | ?????????????????????????????????????????????????? | | ?????????????????????????????????????????????????? | | ?????????????????????????????????????????????????? | | ??????????????????????????#####??????????????????? | | ?????????????????????????? # ????????????????? | | ?????????????????????????? ?????????????????? | | ?????????????????????????? ??????????????????? | | ?????????????????????????? ??????????????????? | | ?????????????????????????? ???????????????????? | | ?????????????????????????# #???????????????????? | | ?????????????????????????# #???????????????????? | | ?????????????????????????# #???????????????????? | | ?????????????????????????# #???????????????????? | | ??????????????######????## ##??????????????????? | | ?????????## ### ##### #??????????????????? | | ?????????# r #?????+????????????? | | ?????? k % #????? ????????????? | | ?????????# %%%r #????? ????????????? | | ??????????# ### #####@Y #????? ????????????? | | ??????????????## ??????## ##????# ###?????????? | | ??????????????# ??????# ##### #?????????? | | ??????????????# ??????# Y #?????????? | | ??????????????# ??????# ??????? | | ??????????????# ??????# ##????????? | | ??????????????# ??????## ###### #?????????? | | ??????????????# ???????# #??????# ###??? "???? | | ??????????????# ???????# #??????# #????? ???? | | ??????????????# #??????# #??????#!#????? ??? | | ??????????????# #??????# #??????#%#????# ? | | ??????????????# #????### ###??###/###### | | ??????????????# ###### #??# % # | | ??????????????# #### """ # | | ??????????????# " /% """ # | | ??????????????# ####%%""" # "T" | | ??????????????# ##### #??# / | | ??????????????# #???########## """ # ? | | ??????????????# % #????# # """ # #? | | ??????????????# #????# """" # """ # #? | | ??????????????# #????# """" # # #? | | ??????????????# #????# """" ######+### #? | | ??????????????# #????# #????# #?# ## | | ??????????????# ###########+####### ### | | ??????????????# ### | +----------------------------------------------------+ Best States ------------- Heat Dissipation 28 Energy Generation 10 Energy Capacity 125 Matter Stores 300 Matter Capacity 300 Sight Range 16 Terrain Scan Density 10 Evasion (%) 55 Item Schematics ----------------- None Robot Schematics ------------------ None Fabricated ------------ Nothing Repaired ---------- Nothing Alien Tech Used ----------------- None Achievements -------------- None Challenges ------------ None Game ------ Seed RegenerativeDirtyMachine Manual? 0 Play Time 00:06:56 Cumulative 7.8 hours Start 2025.07.29 @ 00:21:27 End 2025.07.29 @ 10:47:43 Sessions 3 Manual Loads 0 Difficulty Rogue Special Mode None Game No. 21 Rogue 20 Adventurer 0 Explorer 1 Win Type - Total 0 Types 0/0/0/0/0/0/0/0/0/0 Lore% 5 Gallery% 12 Achievement% 13 Wizard Run 0 Options --------- Layout 1 ASCII 0 Keyboard 0 Movement Mouse Keybinds 0 Fullscreen 1 Font 32/SmallcapsGlow Map View 50x35 Zoom Use 0% Tactical HUD 0 Map Filters NONE Filters NONE Steam 1 RUN: 59494ad7-0634-47eb-bde6-62893a42ac16